bitfinex/quotes_BTCUSD_20240905
["timestamp","ask_amount","ask_price","bid_price","bid_amount"]
[1725544060635,0.351456,56906.0,56896.0,0.1803]
[1725544060868,0.351456,56906.0,56895.0,0.1381]
[1725544060869,2.048693,56915.0,56890.0,0.1803]
[1725544060870,0.527314,56892.0,56890.0,0.1803]
[1725544061345,1.2304,56892.0,56890.0,0.1803]
[1725544061801,0.878857,56892.0,56890.0,0.1803]
[1725544062288,0.527314,56892.0,56890.0,0.1803]
[1725544062679,0.35147,56904.0,56890.0,0.1803]
[1725544062680,0.18357241,56912.0,56895.0,0.351522]
[1725544062683,0.1,56907.0,56890.0,0.1803]
[1725544062891,0.09255862,56915.0,56890.0,0.1803]
[1725544062892,0.527268,56897.0,56896.0,0.131]
[1725544063121,0.527268,56897.0,56890.0,0.1803]
[1725544063122,0.351512,56897.0,56890.0,0.1803]
[1725544063338,0.351512,56897.0,56892.0,0.003515]
[1725544063339,0.351514,56897.0,56892.0,0.003515]
[1725544063608,0.1,56907.0,56890.0,0.1803]
[1725544063609,0.351537,56893.0,56890.0,0.1803]
[1725544063841,0.175771,56892.0,56890.0,0.1803]
[1725544064110,0.878857,56892.0,56890.0,0.1803]
[1725544065127,0.878857,56892.0,56874.0,0.361654]
[1725544065128,1.374791,56892.0,56883.0,0.1755]
[1725544065872,1.374791,56892.0,56877.0,0.1651]
[1725544066111,1.474791,56892.0,56877.0,0.1651]
[1725544066391,1.476791,56892.0,56877.0,0.51868223]
[1725544066629,1.476791,56892.0,56887.0,0.35358223]
[1725544066630,0.880857,56892.0,56887.0,0.35358223]
[1725544066876,0.880857,56892.0,56891.0,0.302934]
[1725544066877,0.002,56892.0,56891.0,0.302934]
[1725544067619,0.002,56892.0,56891.0,0.48222255]
[1725544068133,0.002,56892.0,56891.0,0.302934]
[1725544068399,0.002,56892.0,56891.0,0.478708]
[1725544068682,0.46209708,56918.0,56898.0,0.1779]
[1725544068956,0.1379,56920.0,56902.0,0.35358223]
[1725544068957,0.17573,56906.0,56902.0,0.35358223]
[1725544069143,0.17573,56906.0,56898.0,0.1779]
[1725544069144,0.175722,56908.0,56907.0,0.35358223]
[1725544069389,0.175717,56910.0,56907.0,0.35358223]
[1725544069624,0.070469,56918.0,56902.0,0.351478]
[1725544069625,0.070469,56918.0,56909.0,0.35358223]
[1725544069867,0.1347,56930.0,56909.0,0.35358223]
[1725544070119,0.070456,56928.0,56910.0,0.00351373]
[1725544070354,0.070456,56928.0,56908.0,0.3045]
[1725544070355,0.351391,56917.0,56908.0,0.3045]
[1725544070817,0.351431,56911.0,56908.0,0.3045]
[1725544071068,0.1347,56930.0,56909.0,0.175716]
[1725544071069,0.351405,56915.0,56909.0,0.175716]
[1725544071305,0.351405,56915.0,56907.0,0.001634]
[1725544071306,0.351363,56922.0,56916.0,0.52078223]
[1725544071649,0.351288,56934.0,56916.0,0.52078223]
[1725544071650,0.014,56928.0,56917.0,0.00351346]
[1725544071886,0.51442868,56938.0,56916.0,0.52078223]
[1725544071887,0.175687,56920.0,56916.0,0.52078223]
[1725544072145,0.46209708,56938.0,56916.0,0.52078223]
[1725544072146,0.175676,56923.0,56917.0,0.00351345]
[1725544072408,0.0784974,56942.0,56921.0,0.35358223]
[1725544072409,0.175655,56930.0,56921.0,0.35358223]
[1725544072658,0.00400004,56935.0,56921.0,0.342882]
[1725544072659,0.001,56922.0,56921.0,0.342882]
[1725544072917,0.001,56922.0,56921.0,0.52078223]
[1725544073192,0.527035,56922.0,56921.0,0.1672]
[1725544073447,0.527035,56922.0,56906.0,0.01]
[1725544073448,0.175697,56916.0,56915.0,0.1784]
[1725544073664,0.04378619,56932.0,56915.0,0.1784]
[1725544073892,0.527092,56916.0,56915.0,0.1784]
[1725544074131,0.527092,56916.0,56910.0,0.35358223]
[1725544074132,0.175722,56908.0,56907.0,0.001634]
[1725544074351,0.175705,56914.0,56909.0,0.175717]
[1725544074569,0.175705,56914.0,56907.0,0.001634]
[1725544074570,0.00400004,56922.0,56908.0,0.1693]
[1725544074788,0.528092,56916.0,56915.0,0.006]
[1725544075033,0.351349,56924.0,56908.0,0.1693]
[1725544075284,0.175705,56914.0,56909.0,0.17923101]
[1725544075499,0.352358,56922.0,56909.0,0.17923101]
[1725544075500,0.175712,56912.0,56909.0,0.00351401]
[1725544075744,0.001,56922.0,56908.0,0.1693]
[1725544075968,0.175706,56914.0,56909.0,0.175718]
[1725544076209,0.175709,56912.0,56908.0,0.17281402]
[1725544076445,0.001,56916.0,56910.0,0.351431]
[1725544076729,0.351359,56922.0,56914.0,0.175703]
[1725544076730,0.17569,56919.0,56914.0,0.175703]
[1725544076959,0.351349,56924.0,56914.0,0.175703]
[1725544076960,0.351348,56924.0,56917.0,0.1629]
[1725544077198,0.175661,56928.0,56921.0,0.35358223]
[1725544077434,0.175667,56926.0,56921.0,0.175681]
[1725544077661,0.351322,56928.0,56922.0,0.175677]
[1725544077926,0.351322,56928.0,56923.0,0.00351303]
[1725544077927,0.175667,56926.0,56923.0,0.00351303]
[1725544078166,0.351307,56931.0,56918.0,0.1323]
[1725544078167,0.35133,56927.0,56919.0,0.175687]
[1725544078424,0.175688,56919.0,56918.0,0.1323]
[1725544078659,0.351343,56925.0,56918.0,0.1323]
[1725544078901,0.175676,56923.0,56919.0,0.17920123]
[1725544079177,0.175676,56923.0,56918.0,0.1323]
[1725544079178,0.175688,56919.0,56918.0,0.1323]
[1725544079429,0.01,56928.0,56917.0,0.1629]
[1725544079430,0.00800004,56928.0,56917.0,0.1629]
[1725544079675,0.351372,56920.0,56917.0,0.1629]
[1725544079920,0.527073,56918.0,56917.0,0.1629]
[1725544080192,0.004,56928.0,56911.0,0.48958223]
[1725544080193,0.527128,56912.0,56911.0,0.1797]
[1725544080478,0.527128,56912.0,56885.0,0.496]
[1725544080479,1.230054,56908.0,56904.0,0.1797]
[1725544080680,0.40591383,56921.0,56905.0,0.52650515]
[1725544080681,0.0523316,56921.0,56905.0,0.52650515]
[1725544080925,0.0523316,56921.0,56904.0,0.18321435]
[1725544080926,0.253724,56920.0,56904.0,0.1797]
[1725544081187,0.527166,56908.0,56904.0,0.1797]
[1725544081428,0.99498604,56919.0,56904.0,0.1797]
[1725544081429,0.351417,56913.0,56908.0,0.175721]
[1725544081660,0.0784974,56921.0,56904.0,0.1797]
[1725544081661,0.175722,56908.0,56904.0,0.1797]
[1725544081915,0.87861,56908.0,56904.0,0.1797]
[1725544082189,1.346374,56908.0,56895.0,0.1783]
[1725544082430,1.936018,56908.0,56885.0,0.1421]
[1725544082662,2.04439971,56908.0,56896.0,0.52650515]
[1725544082887,2.04439971,56908.0,56887.0,0.17]
[1725544082888,1.936018,56908.0,56897.0,0.52650515]
[1725544083115,2.01469314,56908.0,56887.0,0.17]
[1725544083348,2.01147275,56908.0,56888.0,0.52650515]
[1725544083586,2.14943991,56908.0,56888.0,0.52650515]
[1725544083829,2.04552029,56908.0,56888.0,0.52650515]
[1725544084066,2.17648989,56908.0,56888.0,0.52650515]
[1725544084474,2.44156748,56908.0,56889.0,0.52650515]
[1725544084478,2.69171788,56908.0,56889.0,0.52650515]
[1725544084692,1.712443,56892.0,56889.0,0.52650515]
[1725544084916,3.72015777,56892.0,56889.0,0.52650515]
[1725544085157,2.408033,56892.0,56884.0,0.175796]
[1725544085374,0.878857,56892.0,56880.0,0.1719]
[1725544085597,1.916873,56892.0,56880.0,0.1719]
[1725544085834,2.391416,56892.0,56880.0,0.1719]
[1725544086075,2.391416,56892.0,56874.0,0.1652]
[1725544086076,2.62534717,56892.0,56874.0,0.1652]
[1725544086305,2.018873,56892.0,56874.0,0.1652]
[1725544086755,2.87819214,56892.0,56874.0,0.52650515]
[1725544086994,2.90439378,56892.0,56874.0,0.52650515]
[1725544087239,3.15108838,56892.0,56874.0,0.52650515]
[1725544087474,3.64908838,56892.0,56875.0,0.52650515]
[1725544087716,3.76783052,56892.0,56875.0,0.52650515]
[1725544087938,3.83864864,56892.0,56875.0,0.52650515]
[1725544088212,3.91716177,56892.0,56875.0,0.52650515]
[1725544088442,3.76713024,56892.0,56875.0,0.52650515]
[1725544088660,3.78113024,56892.0,56875.0,0.52650515]
[1725544088912,3.35107411,56892.0,56875.0,0.52650515]
[1725544089160,3.47454538,56892.0,56875.0,0.52650515]
[1725544089412,3.402816,56892.0,56875.0,0.52650515]
[1725544089642,3.402816,56892.0,56873.0,0.00164]
[1725544089643,4.03882773,56892.0,56873.0,0.00164]
[1725544089891,3.41726618,56892.0,56873.0,0.00164]
[1725544090122,3.2557013,56892.0,56873.0,0.00164]
[1725544090341,2.82572447,56892.0,56873.0,0.00164]
[1725544090553,3.16326747,56892.0,56873.0,0.00164]
[1725544090768,3.17326747,56892.0,56873.0,0.00164]
[1725544090984,4.11508978,56892.0,56873.0,0.00164]
[1725544091204,3.86326747,56892.0,56873.0,0.00164]
[1725544091417,3.84926747,56892.0,56873.0,0.00164]
[1725544091633,3.86326747,56892.0,56873.0,0.00164]
[1725544092129,3.48872447,56892.0,56873.0,0.0046721]
[1725544092348,3.48872447,56892.0,56875.0,0.1692]
[1725544092349,1.964675,56892.0,56875.0,0.1692]
[1725544092800,1.964675,56892.0,56873.0,0.00164]
[1725544092801,0.51,56887.0,56873.0,0.00164]
[1725544093025,0.53024923,56892.0,56873.0,0.00164]
[1725544093026,1.892043,56874.0,56873.0,0.00164]
[1725544093245,7.181387,56874.0,56873.0,0.00164]
[1725544093465,7.74186474,56874.0,56873.0,0.00164]
[1725544093688,8.25186474,56874.0,56873.0,0.00164]
[1725544093937,8.25186474,56874.0,56869.0,1e-07]
[1725544093938,2.295913,56870.0,56869.0,1e-07]
[1725544094210,2.69273674,56870.0,56869.0,1e-07]
[1725544094429,2.74117307,56870.0,56869.0,1e-07]
[1725544094647,2.86417307,56870.0,56869.0,1e-07]
[1725544094874,0.879645,56841.0,56840.0,0.1752]
[1725544095103,0.527787,56841.0,56840.0,0.1752]
[1725544095331,1.231503,56841.0,56840.0,0.1702]
[1725544095558,0.879645,56841.0,56840.0,0.1702]
[1725544095795,0.351836,56845.0,56840.0,0.1702]
[1725544096008,0.1369,56858.0,56840.0,0.1702]
[1725544096009,0.14843633,56856.0,56840.0,0.1702]
[1725544096231,0.1369,56864.0,56840.0,0.1702]
[1725544096232,0.175925,56843.0,56840.0,0.1702]
[1725544096454,0.1,56863.0,56841.0,0.35710039]
[1725544096676,0.46209708,56869.0,56841.0,0.35710039]
[1725544096677,0.351789,56853.0,56842.0,0.14691746]
[1725544096910,0.351697,56868.0,56842.0,0.1414]
[1725544097165,0.277195,56867.0,56852.0,0.01]
[1725544097384,0.014,56870.0,56861.0,0.35358223]
[1725544097612,0.014,56870.0,56860.0,0.351739]
[1725544097835,0.00400004,56875.0,56851.0,0.35358223]
[1725544098106,0.002,56853.0,56840.0,0.011634]
[1725544098339,0.351795,56852.0,56845.0,0.52650515]
[1725544098579,0.351793,56852.0,56846.0,0.1658]
[1725544098814,0.723276,56877.0,56857.0,0.351758]
[1725544098815,0.1405,56877.0,56857.0,0.351758]
[1725544099036,0.52650515,56875.0,56870.0,0.1658]
[1725544099277,0.175812,56879.0,56870.0,0.15483394]
[1725544099520,0.351593,56884.0,56870.0,0.15483394]
[1725544099521,0.175836,56871.0,56870.0,0.15483394]
[1725544099784,0.175836,56871.0,56850.0,0.02]
[1725544099785,0.1302,56874.0,56850.0,0.35358223]
[1725544099999,0.00439573,56881.0,56855.0,0.35358223]
[1725544100230,0.351652,56875.0,56859.0,0.351746]
[1725544100447,0.1302,56885.0,56860.0,0.1408]
[1725544100448,0.175856,56865.0,56860.0,0.1408]
[1725544100663,0.001,56879.0,56860.0,0.49338223]
[1725544100888,0.17584,56870.0,56860.0,0.50338223]
[1725544101135,0.001,56879.0,56863.0,0.17586]
[1725544101136,0.351667,56872.0,56863.0,0.17586]
[1725544101348,0.35163,56878.0,56860.0,0.1398]
[1725544101349,0.175856,56865.0,56860.0,0.1398]
[1725544101570,0.001,56879.0,56861.0,0.351733]
[1725544101794,0.351655,56874.0,56863.0,0.35172]
[1725544102017,0.175828,56874.0,56865.0,0.351708]
[1725544102275,0.175828,56874.0,56850.0,0.02]
[1725544102276,0.1323,56897.0,56873.0,0.35358223]
[1725544102477,0.1323,56897.0,56844.0,0.1]
[1725544102478,0.003,56881.0,56880.0,0.70649023]
[1725544102705,0.59439708,56905.0,56880.0,0.1771]
[1725544102926,0.87799315,56901.0,56882.0,0.351602]
[1725544103171,0.1755,56900.0,56883.0,0.00351169]
[1725544103407,0.1323,56905.0,56886.0,0.35358223]
[1725544103408,0.351504,56899.0,56886.0,0.35358223]
[1725544103668,0.52735,56888.0,56887.0,0.1708]
[1725544103877,0.52735,56888.0,56887.0,0.1698]
[1725544104567,0.35358223,56901.0,56872.0,0.1337]
[1725544104568,0.175825,56875.0,56872.0,0.1337]
[1725544104787,0.351614,56881.0,56872.0,0.1337]
[1725544105010,0.00439522,56895.0,56872.0,0.1337]
[1725544105011,0.17583,56873.0,56872.0,0.1337]
[1725544105235,0.1304,56887.0,56855.0,0.35358223]
[1725544105236,0.1677,56883.0,56855.0,0.35358223]
[1725544105460,0.1677,56883.0,56850.0,0.01]
[1725544105461,0.351641,56877.0,56856.0,0.141]
[1725544105711,0.351641,56877.0,56846.0,0.52650515]
[1725544105712,0.1309,56868.0,56846.0,0.52650515]
[1725544105932,0.175895,56852.0,56851.0,0.1375]
[1725544106147,0.00439671,56867.0,56851.0,0.1375]
[1725544106365,0.175902,56850.0,56845.0,0.49538223]
[1725544106580,0.1,56867.0,56851.0,0.175898]
[1725544106807,0.1129287,56866.0,56852.0,0.1718]
[1725544107040,0.175892,56853.0,56852.0,0.1718]
[1725544107556,0.175887,56855.0,56852.0,0.1718]
[1725544107779,0.1309,56868.0,56852.0,0.1718]
[1725544107780,0.175892,56853.0,56852.0,0.1718]
[1725544108007,0.1309,56868.0,56852.0,0.1718]
[1725544108008,0.351734,56861.0,56852.0,0.52538223]
[1725544108221,0.109,56867.0,56852.0,0.70127623]
[1725544108461,0.1,56867.0,56853.0,0.351784]
[1725544108684,0.001,56855.0,56852.0,0.52538223]
[1725544108898,0.001,56855.0,56852.0,0.1718]
[1725544108899,0.176886,56855.0,56852.0,0.1718]
[1725544109135,0.001,56855.0,56852.0,0.1718]
[1725544109377,0.001,56855.0,56852.0,0.1748]
[1725544109622,0.001,56855.0,56853.0,0.00351739]
[1725544109865,0.001,56855.0,56852.0,0.52538223]
[1725544110105,0.001,56855.0,56852.0,0.71227423]
[1725544110349,0.000818,56856.0,56852.0,0.1718]
[1725544110600,0.87946,56853.0,56852.0,0.1718]
[1725544110838,0.000818,56856.0,56847.0,0.51718223]
[1725544111344,0.000818,56856.0,56855.0,0.175886]
[1725544111620,0.000818,56856.0,56847.0,0.86900223]
[1725544111621,0.175896,56852.0,56847.0,0.51718223]
[1725544111853,0.000818,56856.0,56848.0,0.17942363]
[1725544111854,0.001,56855.0,56848.0,0.17942363]
[1725544112111,0.001,56853.0,56847.0,0.339509]
[1725544112348,0.001,56853.0,56849.0,0.175904]
[1725544112579,0.001,56853.0,56850.0,0.00351763]
[1725544112580,0.175897,56852.0,56850.0,0.00351763]
[1725544112807,0.001,56853.0,56849.0,0.351808]
[1725544113050,0.001,56853.0,56847.0,0.52618223]
[1725544113051,0.001,56853.0,56850.0,0.00351751]
[1725544113290,0.001,56853.0,56852.0,0.88126723]
[1725544113574,0.000818,56856.0,56855.0,0.185886]
[1725544113835,0.000818,56856.0,56855.0,1.18853]
[1725544114083,0.000818,56856.0,56855.0,1.540302]
[1725544114361,0.000818,56856.0,56855.0,1.17853]
[1725544114639,0.000818,56856.0,56855.0,1.539302]
[1725544114937,0.1391,56902.0,56894.0,0.1704]
[1725544115158,1.05379115,56895.0,56894.0,0.1704]
[1725544115424,0.87881,56895.0,56894.0,0.1704]
[1725544115672,0.19012517,56909.0,56888.0,0.1737]
[1725544115923,1.13468995,56907.0,56889.0,0.00351135]
[1725544116155,0.000817,56908.0,56894.0,0.175764]
[1725544116399,0.175759,56896.0,56895.0,0.00351018]
[1725544116651,0.175746,56901.0,56895.0,0.175761]
[1725544116907,0.175748,56900.0,56896.0,0.00351042]
[1725544117140,0.175748,56900.0,56890.0,0.35155]
[1725544117141,0.175763,56895.0,56894.0,0.001]
[1725544117636,0.175757,56897.0,56889.0,0.351559]
[1725544117902,0.175757,56897.0,56888.0,0.52728223]
[1725544117903,0.351508,56898.0,56888.0,0.52728223]
[1725544118412,0.003,56901.0,56888.0,0.52728223]
[1725544118413,0.17578,56889.0,56888.0,0.1747]
[1725544118705,0.003,56901.0,56888.0,0.1737]
[1725544118706,0.175776,56891.0,56888.0,0.1737]
[1725544118926,0.001,56897.0,56888.0,0.52728223]
[1725544119174,0.100817,56908.0,56889.0,0.35709356]
[1725544119431,0.175772,56892.0,56889.0,0.35358223]
[1725544119693,0.100817,56908.0,56889.0,0.35358223]
[1725544119971,0.351512,56897.0,56889.0,0.35358223]
[1725544120185,0.001,56891.0,56888.0,0.1867]
[1725544120440,0.001,56891.0,56890.0,0.175777]
[1725544121233,0.001,56891.0,56889.0,0.35358223]
[1725544121737,0.001,56891.0,56890.0,0.88239832]
[1725544121999,0.001,56892.0,56891.0,0.537323]
[1725544122278,0.000817,56908.0,56891.0,0.537323]
[1725544122279,0.000817,56908.0,56893.0,0.1846]
[1725544122595,0.000817,56908.0,56907.0,0.52930723]
[1725544122750,0.000817,56908.0,56907.0,1.02245723]
[1725544123020,0.000817,56908.0,56907.0,0.49428223]
[1725544123021,0.176539,56908.0,56907.0,0.49428223]
[1725544123290,0.17574,56903.0,56902.0,0.35358223]
[1725544123535,0.000817,56908.0,56897.0,0.35358223]
[1725544123796,0.175751,56899.0,56897.0,0.35358223]
[1725544124047,0.000817,56908.0,56891.0,0.351547]
[1725544124048,0.14601038,56908.0,56892.0,0.35358223]
[1725544124302,0.14601038,56908.0,56891.0,0.006]
[1725544124303,0.351497,56900.0,56891.0,0.006]
[1725544124532,0.351543,56892.0,56883.0,0.1388]
[1725544125057,0.351635,56877.0,56871.0,0.52650515]
[1725544125303,0.14539405,56891.0,56875.0,0.175823]
[1725544125304,0.241,56891.0,56875.0,0.175823]
[1725544125535,0.241,56891.0,56874.0,0.35358223]
[1725544125536,0.31347584,56890.0,56874.0,0.35358223]
[1725544125779,0.175804,56882.0,56874.0,0.70523123]
[1725544126016,0.141,56891.0,56878.0,0.175813]
[1725544126017,0.1758,56883.0,56878.0,0.175813]
[1725544126260,0.351515,56897.0,56872.0,0.179]
[1725544126261,0.1308,56896.0,56879.0,0.3570955]
[1725544126486,0.35155,56891.0,56884.0,0.35358223]
[1725544126701,0.175778,56890.0,56886.0,0.175789]
[1725544126931,0.175769,56893.0,56888.0,0.175782]
[1725544127155,0.351526,56895.0,56885.0,0.1651]
[1725544127383,0.1388,56896.0,56879.0,0.1772]
[1725544127384,0.351571,56888.0,56879.0,0.1772]
[1725544127625,0.006,56891.0,56875.0,0.70470515]
[1725544127844,0.10439479,56895.0,56880.0,0.35358223]
[1725544128064,0.10439479,56895.0,56881.0,0.17931623]
[1725544128065,0.35157,56888.0,56881.0,0.17931623]
[1725544128290,0.175782,56889.0,56880.0,0.35358223]
[1725544128523,0.004,56893.0,56887.0,0.175786]
[1725544128775,0.004,56893.0,56888.0,0.17929474]
[1725544128991,0.004,56893.0,56888.0,0.00351174]
[1725544128992,0.175776,56891.0,56888.0,0.00351174]
[1725544129218,0.004,56893.0,56888.0,0.00351174]
[1725544129219,0.17577,56893.0,56888.0,0.00351174]
[1725544129440,0.175775,56891.0,56885.0,0.35358223]
[1725544129666,0.175779,56890.0,56885.0,0.52937423]
[1725544129893,0.175773,56892.0,56888.0,0.001]
[1725544130177,0.175778,56890.0,56888.0,0.001]
[1725544130356,0.1,56901.0,56888.0,0.001]
[1725544130586,0.1,56901.0,56889.0,0.1742]
[1725544130587,0.175777,56890.0,56889.0,0.1742]
[1725544131029,0.003,56891.0,56889.0,0.1742]
[1725544131248,0.175777,56890.0,56889.0,0.1742]
[1725544131488,0.527332,56890.0,56889.0,0.1742]
[1725544131720,0.878902,56889.0,56888.0,0.003]
[1725544131962,0.878902,56889.0,56888.0,0.001]
[1725544132178,0.527397,56883.0,56882.0,0.1704]
[1725544132411,0.527397,56883.0,56875.0,0.1694]
[1725544132412,0.527463,56876.0,56875.0,0.1694]
[1725544132655,0.351631,56878.0,56870.0,0.175837]
[1725544132912,0.175836,56872.0,56868.0,0.1694]
[1725544133143,0.1321,56883.0,56862.0,0.1694]
[1725544133389,2.46559496,56882.0,56862.0,0.1694]
[1725544133635,1.052084,56881.0,56863.0,0.00351633]
[1725544133873,0.175834,56872.0,56867.0,0.351696]
[1725544134111,0.175834,56872.0,56864.0,0.35358223]
[1725544134112,0.351662,56873.0,56868.0,0.00351567]
[1725544134355,0.175836,56871.0,56868.0,0.00351567]
[1725544134585,0.1,56882.0,56869.0,0.35358223]
[1725544134586,0.351633,56878.0,56869.0,0.35358223]
[1725544134822,0.1331,56883.0,56869.0,0.35358223]
[1725544134823,0.1321,56883.0,56870.0,0.00351471]
[1725544135061,0.1321,56883.0,56882.0,0.012]
[1725544135062,0.527397,56883.0,56882.0,0.012]
[1725544135333,0.351581,56886.0,56877.0,0.351633]
[1725544135558,0.1,56891.0,56881.0,0.175805]
[1725544135559,0.351574,56887.0,56881.0,0.175805]
[1725544135793,0.1,56891.0,56882.0,0.00351298]
[1725544135794,0.351557,56890.0,56882.0,0.00351298]
[1725544136035,0.175788,56887.0,56882.0,0.175801]
[1725544136296,0.000815,56892.0,56872.0,0.175831]
[1725544136297,0.00439445,56889.0,56872.0,0.175831]
[1725544136533,0.000815,56892.0,56872.0,0.175831]
[1725544136534,0.00439445,56886.0,56872.0,0.70233715]
[1725544136751,0.00439445,56886.0,56871.0,0.346235]
[1725544136752,0.175825,56875.0,56871.0,0.346235]
[1725544136990,0.175809,56880.0,56873.0,0.351657]
[1725544137206,0.1305,56895.0,56877.0,0.35358223]
[1725544137207,0.356598,56883.0,56877.0,0.35358223]
[1725544137427,0.005,56883.0,56879.0,0.175809]
[1725544137660,0.175776,56891.0,56887.0,0.175785]
[1725544137935,0.176586,56892.0,56888.0,0.175781]
[1725544138151,0.176586,56892.0,56882.0,1.00178723]
[1725544138152,0.175788,56887.0,56882.0,0.2966]
[1725544138373,0.351587,56885.0,56882.0,0.1663]
[1725544138588,0.351582,56886.0,56882.0,0.1663]
[1725544138839,0.351562,56889.0,56883.0,0.175797]
[1725544139096,0.352549,56891.0,56882.0,0.1663]
[1725544139327,0.352549,56891.0,56887.0,0.175786]
[1725544139328,0.001,56891.0,56887.0,0.175786]
[1725544139565,0.001,56891.0,56888.0,0.17929499]
[1725544139803,0.001,56891.0,56888.0,0.00351199]
[1725544139804,0.175779,56890.0,56888.0,0.00351199]
[1725544140045,0.175779,56890.0,56883.0,0.351594]
[1725544140046,0.175778,56890.0,56883.0,0.351594]
[1725544140291,0.001,56891.0,56882.0,0.51988223]
[1725544140515,0.352555,56891.0,56882.0,0.1663]
[1725544140732,0.109345,56890.0,56882.0,0.1763]
[1725544140954,0.175803,56882.0,56877.0,0.353116]
[1725544141169,0.000815,56892.0,56882.0,0.006]
[1725544141170,0.351564,56889.0,56882.0,0.006]
[1725544141372,0.527388,56884.0,56883.0,0.004]
[1725544141593,0.000815,56892.0,56877.0,0.1773]
[1725544141808,0.126215,56891.0,56877.0,0.1773]
[1725544142027,0.00439483,56890.0,56878.0,0.00351362]
[1725544142248,0.175811,56879.0,56878.0,0.00351362]
[1725544142467,0.175814,56878.0,56877.0,0.1773]
[1725544142681,0.351614,56881.0,56877.0,0.1773]
[1725544142916,0.1378,56884.0,56873.0,0.17583]
[1725544143137,0.175827,56875.0,56872.0,0.6755]
[1725544143351,0.175829,56874.0,56872.0,0.6755]
[1725544143565,0.52749,56873.0,56872.0,0.5]
[1725544143784,1.183842,56873.0,56872.0,0.5]
[1725544144030,0.351648,56876.0,56872.0,0.5]
[1725544144286,0.17583,56873.0,56872.0,0.5]
[1725544144532,0.001,56879.0,56878.0,0.012]
[1725544144784,0.001,56879.0,56878.0,0.19132773]
[1725544145024,0.351558,56890.0,56878.0,0.19132773]
[1725544145025,0.451558,56890.0,56878.0,0.17861284]
[1725544145267,0.000815,56892.0,56890.0,0.175777]
[1725544145508,0.000815,56892.0,56883.0,0.35358223]
[1725544145765,0.176587,56892.0,56884.0,0.35510279]
[1725544146039,0.176587,56892.0,56891.0,0.527323]
[1725544146040,0.000815,56892.0,56891.0,0.527323]
[1725544146258,0.000815,56892.0,56891.0,0.175774]
[1725544146476,0.000815,56892.0,56891.0,0.527323]
[1725544146697,0.000815,56892.0,56891.0,0.175774]
[1725544146915,0.000815,56892.0,56888.0,0.175782]
[1725544147152,0.175794,56885.0,56884.0,0.00163]
[1725544147397,1.015466,56885.0,56884.0,0.00163]
[1725544147624,0.52749,56873.0,56855.0,0.001636]
[1725544147869,2.33912004,56873.0,56872.0,0.49194108]
[1725544148136,8.24938959,56873.0,56872.0,0.49194108]
[1725544148367,8.24938959,56873.0,56855.0,0.001636]
[1725544148368,2.32325923,56856.0,56855.0,0.001636]
[1725544148619,2.32325923,56856.0,56833.0,0.52650515]
[1725544148620,1.39612723,56841.0,56833.0,0.52650515]
[1725544148857,1.526803,56841.0,56833.0,0.52650515]
[1725544149106,1.526803,56841.0,56828.0,0.00013]
[1725544149107,1.98038523,56841.0,56828.0,0.00013]
[1725544149429,2.71910123,56841.0,56828.0,0.00013]
[1725544149628,2.54280349,56841.0,56828.0,0.00013]
[1725544149846,6.64784123,56841.0,56840.0,0.002634]
[1725544150071,4.60632623,56841.0,56840.0,0.002634]
[1725544150296,4.69412846,56841.0,56840.0,0.002634]
[1725544150529,2.381238,56841.0,56840.0,0.002634]
[1725544150759,2.162868,56841.0,56840.0,0.002634]
[1725544150979,1.958125,56841.0,56840.0,0.002634]
[1725544151220,1.948125,56841.0,56840.0,0.001634]
[1725544151438,1.962125,56841.0,56840.0,0.002634]
[1725544151698,2.31270723,56841.0,56840.0,0.002634]
[1725544151918,2.69756523,56841.0,56840.0,0.002634]
[1725544152153,2.69356523,56841.0,56840.0,0.002634]
[1725544152367,2.69556523,56841.0,56840.0,0.002634]
[1725544152584,2.70456523,56841.0,56840.0,0.003634]
[1725544152805,2.34270723,56841.0,56840.0,0.003634]
[1725544153247,2.88012549,56841.0,56840.0,0.003634]
[1725544153756,3.23398349,56841.0,56840.0,0.003634]
[1725544154479,3.05842323,56841.0,56840.0,0.003634]
[1725544154701,3.10685956,56841.0,56840.0,0.003634]
[1725544154924,2.78461729,56841.0,56840.0,0.003634]
[1725544155161,2.75300156,56841.0,56840.0,0.003634]
[1725544155401,2.69456523,56841.0,56840.0,0.003634]
[1725544155660,3.39456523,56841.0,56840.0,0.003634]
[1725544155882,3.01970723,56841.0,56840.0,0.003634]
[1725544156366,3.37156523,56841.0,56840.0,0.003634]
[1725544156602,3.01970723,56841.0,56840.0,0.003634]
[1725544156881,2.31970723,56841.0,56840.0,0.003634]
[1725544157397,1.570825,56841.0,56840.0,0.003634]
[1725544157634,1.054717,56841.0,56840.0,0.003634]
[1725544157874,0.193929,56841.0,56840.0,0.171734]
[1725544158113,0.018,56841.0,56840.0,0.171734]
[1725544158593,0.193929,56841.0,56840.0,0.171734]
[1725544158820,0.897645,56841.0,56840.0,0.171734]
[1725544159069,0.527787,56841.0,56840.0,0.169734]
[1725544159318,0.002,56841.0,56840.0,0.169734]
[1725544159566,0.002,56841.0,56840.0,0.483466]
[1725544159567,0.009,56841.0,56840.0,0.483466]
[1725544160015,0.009,56841.0,56840.0,1.187194]
[1725544160248,0.009,56841.0,56840.0,1.539058]
[1725544160470,0.35358223,56874.0,56840.0,1.539058]
[1725544160471,0.319,56878.0,56855.0,0.175885]
[1725544160697,0.319,56878.0,56849.0,0.3101]
[1725544160698,0.351734,56862.0,56852.0,0.175894]
[1725544160970,0.319,56878.0,56849.0,0.66368223]
[1725544160971,0.35171,56865.0,56849.0,0.66368223]
[1725544161212,0.319,56878.0,56849.0,0.3101]
[1725544161213,0.175901,56850.0,56849.0,0.3101]